fUST/lending_fUST_20240925
["ID","MTS","AMOUNT","RATE_DAILY","PERIOD"]
[339071839,1727200245364,-165.127171,0.00025686,7]
[339071841,1727200245374,-165.127171,0.00025686,7]
[339071842,1727200245383,-151.0,0.00025686,7]
[339071843,1727200245393,-280.503852,0.00025686,7]
[339071844,1727200245402,-187.077302,0.00025686,7]
[339071846,1727200245411,-187.077302,0.00025686,7]
[339071847,1727200245423,-150.112233,0.000257,5]
[339071848,1727200245434,-1000.0,0.00025734,2]
[339071849,1727200245444,-1000.0,0.00025739,2]
[339071850,1727200245454,-205.65785095,0.0002574,2]
[339071851,1727200245464,-1000.0,0.00025755,2]
[339071852,1727200245474,-461.014614,0.00025764,7]
[339071853,1727200245483,-461.014614,0.00025764,7]
[339071854,1727200245493,-544.221979,0.00025764,7]
[339071855,1727200245502,-544.221979,0.00025764,7]
[339071856,1727200245511,-2550.682353,0.00025764,7]
[339071857,1727200245522,-2550.682353,0.00025764,7]
[339071858,1727200245532,-996.193539,0.00025764,7]
[339071860,1727200245542,-754.927123,0.00025764,7]
[339071861,1727200245551,-754.927123,0.00025764,7]
[339071863,1727200245560,-209.261881,0.00025764,7]
[339071864,1727200245570,-209.261881,0.00025764,7]
[339071865,1727200245581,-397.538521,0.00025764,7]
[339071866,1727200245590,-397.538521,0.00025764,7]
[339071867,1727200245600,-151.0,0.00025764,7]
[339071868,1727200245610,-63387.44409398,0.00025774,2]
[339071869,1727200245622,-423.104078,0.00025774,7]
[339071870,1727200245634,-423.104078,0.00025774,7]
[339071871,1727200245645,-150.0,0.000258,2]
[339071872,1727200245656,-1000.0,0.000258,2]
[339071874,1727200245666,-1000.0,0.00025828,2]
[339071876,1727200245676,-1000.0,0.00025855,2]
[339071878,1727200245685,-209.0432937,0.00025858,2]
[339071880,1727200245694,-209.0432937,0.00025858,2]
[339071882,1727200245703,-310.0,0.00025859,30]
[339071884,1727200245712,-310.0,0.00025859,30]
[339071886,1727200245722,-180.143587,0.00025859,30]
[339071888,1727200245731,-461.014614,0.00025859,7]
[339071890,1727200245741,-461.014614,0.00025859,7]
[339071892,1727200245750,-153.425284,0.00025859,7]
[339071893,1727200245761,-153.425284,0.00025859,7]
[339071895,1727200245770,-151.0,0.00025859,7]
[339071897,1727200245780,-1768.37823,0.00025859,7]
[339071898,1727200245789,-1768.37823,0.00025859,7]
[339071899,1727200245798,-151.0,0.00025859,7]
[339071900,1727200245807,-652.374896,0.00025859,7]
[339071901,1727200245816,-652.374896,0.00025859,7]
[339071902,1727200245825,-151.0,0.00025859,7]
[339071904,1727200245837,-344.477916,0.00025859,7]
[339071906,1727200245846,-344.477916,0.00025859,7]
[339071907,1727200245855,-2796.65177,0.00025859,7]
[339071908,1727200245865,-2796.65177,0.00025859,7]
[339071909,1727200245874,-151.0,0.00025859,7]
[339071910,1727200245884,-400.870378,0.00025859,7]
[339071911,1727200245894,-400.870378,0.00025859,7]
[339071912,1727200245903,-544.221979,0.00025869,7]
[339071913,1727200245914,-544.221979,0.00025869,7]
[339071914,1727200245924,-2550.682353,0.00025869,7]
[339071915,1727200245934,-2550.682353,0.00025869,7]
[339071916,1727200245943,-996.193539,0.00025869,7]
[339071917,1727200245953,-169.239238,0.00025869,7]
[339071918,1727200245963,-169.239238,0.00025869,7]
[339071919,1727200245972,-297.728922,0.00025869,7]
[339071920,1727200245982,-236.508987,0.00025869,7]
[339071921,1727200245991,-236.508987,0.00025869,7]
[339071922,1727200246002,-264.375508,0.00025869,7]
[339071923,1727200246011,-264.375508,0.00025869,7]
[339071924,1727200246021,-151.0,0.00025869,7]
[339071925,1727200246030,-151.0,0.00025869,7]
[339071926,1727200246040,-2056.175862,0.00025869,7]
[339071927,1727200246141,-754.927123,0.00025869,7]
[339071928,1727200246152,-754.927123,0.00025869,7]
[339071929,1727200246165,-165.127171,0.00025869,7]
[339071930,1727200246174,-165.127171,0.00025869,7]
[339071931,1727200246183,-151.0,0.00025869,7]
[339071932,1727200246192,-187.077302,0.00025869,7]
[339071933,1727200246202,-187.077302,0.00025869,7]
[339071934,1727200246211,-151.0,0.00025869,7]
[339071935,1727200246220,-619.783301,0.00025869,7]
[339071936,1727200246230,-619.783301,0.00025869,7]
[339071937,1727200246242,-151.0,0.00025869,7]
[339071938,1727200246251,-151.0,0.00025869,7]
[339071939,1727200246261,-151.0,0.00025869,7]
[339071940,1727200246270,-500.0,0.00025873,2]
[339071941,1727200246279,-500.0,0.00025873,2]
[339071942,1727200246288,-600.37677604,0.00025873,2]
[339071943,1727200246298,-500.0,0.00025873,2]
[339071944,1727200246307,-361.24522872,0.00025873,2]
[339071945,1727200246316,-150.0,0.00025873,2]
[339071946,1727200246325,-249.078605,0.00025873,7]
[339071947,1727200246339,-249.078605,0.00025873,7]
[339071948,1727200246350,-222.459046,0.00025873,7]
[339071949,1727200246360,-222.459046,0.00025873,7]
[339071950,1727200246370,-151.0,0.00025873,7]
[339071951,1727200246379,-151.0,0.00025873,7]
[339071952,1727200246389,-204.3582581,0.00025877,2]
[339071953,1727200246398,-6344.19501345,0.00025877,2]
[339071954,1727200246408,-160.0,0.00025878,2]
[339071955,1727200246417,-184042.95820689,0.00025879,2]
[339071956,1727200246427,-151.0,0.00025879,7]
[339071957,1727200246436,-151.0,0.00025879,7]
[339071958,1727200246445,-344.865491,0.00025879,7]
[339071959,1727200246456,-344.865491,0.00025879,7]
[339071960,1727200246466,-461.014614,0.00025879,7]
[339071961,1727200246475,-461.014614,0.00025879,7]
[339071962,1727200246485,-153.425284,0.00025879,7]
[339071963,1727200246495,-153.425284,0.00025879,7]
[339071964,1727200246504,-151.0,0.00025879,7]
[339071965,1727200246514,-151.0,0.00025879,7]
[339071966,1727200246523,-213.809146,0.00025879,7]
[339071967,1727200246533,-213.809146,0.00025879,7]
[339071968,1727200246542,-279.944035,0.00025879,7]
[339071969,1727200246552,-279.944035,0.00025879,7]
[339071970,1727200246561,-544.221979,0.00025879,7]
[339071971,1727200246570,-544.221979,0.00025879,7]
[339071972,1727200246579,-2550.682353,0.00025879,7]
[339071973,1727200246591,-2550.682353,0.00025879,7]
[339071974,1727200246601,-996.193539,0.00025879,7]
[339071975,1727200246610,-169.239238,0.00025879,7]
[339071976,1727200246619,-169.239238,0.00025879,7]
[339071977,1727200246629,-236.508987,0.00025879,7]
[339071978,1727200246639,-236.508987,0.00025879,7]
[339071979,1727200246648,-264.375508,0.00025879,7]
[339071980,1727200246657,-264.375508,0.00025879,7]
[339071981,1727200246666,-151.0,0.00025879,7]
[339071982,1727200246675,-205.410397,0.00025879,7]
[339071983,1727200246685,-2056.175862,0.00025879,7]
[339071984,1727200246694,-754.927123,0.00025879,7]
[339071985,1727200246703,-754.927123,0.00025879,7]
[339071986,1727200246712,-165.127171,0.00025879,7]
[339071987,1727200246722,-165.127171,0.00025879,7]
[339071988,1727200246731,-151.0,0.00025879,7]
[339071989,1727200246740,-187.077302,0.00025879,7]
[339071990,1727200246749,-151.0,0.00025879,7]
[339071991,1727200246759,-187.077302,0.00025879,7]
[339071992,1727200246768,-151.0,0.00025879,7]
[339071993,1727200246777,-151.0,0.00025879,7]
[339071994,1727200246787,-151.0,0.00025879,7]
[339071995,1727200246796,-151.0,0.00025879,7]
[339071996,1727200246805,-960.684071,0.00025879,7]
[339071997,1727200246816,-960.684071,0.00025879,7]
[339071998,1727200246826,-183.244795,0.00025879,7]
[339071999,1727200246844,-183.244795,0.00025879,7]
[339072000,1727200246855,-421.574842,0.00025879,7]
[339072001,1727200246866,-421.574842,0.00025879,7]
[339072002,1727200246875,-345.14573,0.00025879,7]
[339072003,1727200246885,-345.14573,0.00025879,7]
[339072004,1727200246894,-249.078605,0.00025879,7]
[339072005,1727200246904,-249.078605,0.00025879,7]
[339072006,1727200246913,-750.579028,0.00025879,7]
[339072007,1727200246922,-750.579028,0.00025879,7]
[339072008,1727200246931,-222.459046,0.00025879,7]
[339072009,1727200246941,-222.459046,0.00025879,7]
[339072010,1727200246950,-151.0,0.00025879,7]
[339072011,1727200246960,-228.680356,0.00025879,7]
[339072012,1727200246970,-151.0,0.00025879,7]
[339072013,1727200246980,-1768.37823,0.00025879,7]
[339072014,1727200246990,-209.261881,0.00025879,7]
[339072015,1727200246999,-209.261881,0.00025879,7]
[339072016,1727200247009,-1768.37823,0.00025879,7]
[339072017,1727200247018,-209.261881,0.00025879,7]
[339072018,1727200247028,-209.261881,0.00025879,7]
[339072019,1727200247037,-1433.804661,0.00025879,7]
[339072020,1727200247047,-1433.804661,0.00025879,7]
[339072021,1727200247057,-1433.804661,0.00025879,7]
[339072022,1727200247067,-1433.804661,0.00025879,7]
[339072023,1727200247076,-173.086682,0.00025879,7]
[339072024,1727200247088,-173.086682,0.00025879,7]
[339072025,1727200247097,-350.831491,0.00025879,7]
[339072026,1727200247106,-350.831491,0.00025879,7]
[339072027,1727200247115,-350.831491,0.00025879,7]
[339072028,1727200247125,-350.831491,0.00025879,7]
[339072029,1727200247134,-151.0,0.00025879,7]
[339072030,1727200247144,-652.374896,0.00025879,7]
[339072031,1727200247153,-397.538521,0.00025879,7]
[339072032,1727200247166,-397.538521,0.00025879,7]
[339072033,1727200247175,-652.374896,0.00025879,7]
[339072034,1727200247185,-397.538521,0.00025879,7]
[339072035,1727200247194,-397.538521,0.00025879,7]
[339072036,1727200247203,-151.0,0.00025879,7]
[339072037,1727200247213,-344.477916,0.00025879,7]
[339072038,1727200247223,-344.477916,0.00025879,7]
[339072039,1727200247232,-2796.65177,0.00025879,7]
[339072040,1727200247243,-151.0,0.00025879,7]
[339072041,1727200247253,-151.0,0.00025879,7]
[339072042,1727200247262,-2796.65177,0.00025879,7]
[339072043,1727200247272,-256.217907,0.00025879,7]
[339072044,1727200247281,-400.870378,0.00025879,7]
[339072045,1727200247291,-423.104078,0.00025879,7]
[339072046,1727200247300,-400.870378,0.00025879,7]
[339072047,1727200247309,-423.104078,0.00025879,7]
[339072048,1727200247319,-566.381994,0.00025879,7]
[339072049,1727200247329,-566.381994,0.00025879,7]
[339072050,1727200247342,-266.32331,0.00025879,7]
[339072051,1727200247351,-619.783301,0.00025879,7]
[339072052,1727200247361,-619.783301,0.00025879,7]
[339072053,1727200247371,-151.0,0.00025879,7]
[339072054,1727200247380,-156.922161,0.00025879,7]
[339072055,1727200247389,-151.0,0.00025879,7]
[339072056,1727200247399,-544.221979,0.0002589,7]
[339072057,1727200247409,-544.221979,0.0002589,7]
[339072058,1727200247418,-2550.682353,0.0002589,7]
[339072059,1727200247429,-2550.682353,0.0002589,7]
[339072060,1727200247438,-996.193539,0.0002589,7]
[339072061,1727200247447,-169.239238,0.0002589,7]
[339072062,1727200247457,-169.239238,0.0002589,7]
[339072063,1727200247466,-236.508987,0.0002589,7]
[339072064,1727200247476,-236.508987,0.0002589,7]
[339072065,1727200247485,-264.375508,0.0002589,7]
[339072066,1727200247495,-264.375508,0.0002589,7]
[339072067,1727200247504,-151.0,0.0002589,7]
[339072068,1727200247514,-2056.175862,0.0002589,7]
[339072069,1727200247523,-754.927123,0.0002589,7]
[339072070,1727200247533,-754.927123,0.0002589,7]
[339072071,1727200247542,-165.127171,0.0002589,7]
[339072072,1727200247636,-165.127171,0.0002589,7]
[339072073,1727200247646,-151.0,0.0002589,7]
[339072074,1727200247656,-187.077302,0.0002589,7]
[339072075,1727200247665,-187.077302,0.0002589,7]
[339072076,1727200247675,-62758.47556068,0.000259,10]
[339072077,1727200247686,-54896.99808877,0.000259,10]
[339072078,1727200247696,-145349.0,0.000259,2]
[339072079,1727200247705,-282.392574,0.000259,7]
[339072080,1727200247715,-282.392574,0.000259,7]
[339072081,1727200247725,-151.0,0.000259,7]
[339072082,1727200247737,-432.063436,0.000259,7]
[339072083,1727200247748,-151.0,0.000259,7]
[339072084,1727200247757,-344.865491,0.000259,7]
[339072085,1727200247768,-344.865491,0.000259,7]
[339072086,1727200247778,-461.014614,0.000259,7]
[339072087,1727200247788,-461.014614,0.000259,7]
[339072088,1727200247797,-153.425284,0.000259,7]
[339072089,1727200247807,-153.425284,0.000259,7]
[339072090,1727200247816,-151.0,0.000259,7]
[339072091,1727200247825,-151.0,0.000259,7]
[339072092,1727200247837,-213.809146,0.000259,7]
[339072093,1727200247846,-213.809146,0.000259,7]
[339072094,1727200247855,-279.944035,0.000259,7]
[339072095,1727200247865,-279.944035,0.000259,7]
[339072096,1727200247876,-151.0,0.000259,7]
[339072097,1727200247887,-151.0,0.000259,7]
[339072098,1727200247896,-319.195538,0.000259,7]
[339072099,1727200247906,-319.195538,0.000259,7]
[339072100,1727200247916,-796.860642,0.000259,7]
[339072101,1727200247927,-544.221979,0.000259,7]
[339072102,1727200247937,-796.860642,0.000259,7]
[339072103,1727200247948,-544.221979,0.000259,7]
[339072104,1727200247958,-2550.682353,0.000259,7]
[339072105,1727200247969,-2550.682353,0.000259,7]
[339072106,1727200247979,-996.193539,0.000259,7]
[339072107,1727200247989,-169.239238,0.000259,7]
[339072108,1727200247998,-169.239238,0.000259,7]
[339072109,1727200248009,-236.508987,0.000259,7]
[339072110,1727200248020,-236.508987,0.000259,7]
[339072111,1727200248030,-264.375508,0.000259,7]
[339072112,1727200248041,-264.375508,0.000259,7]
[339072113,1727200248051,-151.0,0.000259,7]
[339072114,1727200248062,-2056.175862,0.000259,7]
[339072115,1727200248072,-754.927123,0.000259,7]
[339072116,1727200248083,-754.927123,0.000259,7]
[339072117,1727200248093,-165.127171,0.000259,7]
[339072118,1727200248103,-165.127171,0.000259,7]
[339072119,1727200248113,-151.0,0.000259,7]
[339072120,1727200248123,-187.077302,0.000259,7]
[339072121,1727200248135,-151.0,0.000259,7]
[339072122,1727200248144,-187.077302,0.000259,7]
[339072123,1727200248154,-151.0,0.000259,7]
[339072124,1727200248168,-151.0,0.000259,7]
[339072125,1727200248178,-151.0,0.000259,7]
[339072126,1727200248188,-151.0,0.000259,7]
[339072127,1727200248199,-960.684071,0.000259,7]
[339072128,1727200248209,-960.684071,0.000259,7]
[339072129,1727200248219,-183.244795,0.000259,7]
[339072130,1727200248229,-183.244795,0.000259,7]
[339072131,1727200248241,-421.574842,0.000259,7]
[339072132,1727200248251,-421.574842,0.000259,7]
[339072133,1727200248261,-345.14573,0.000259,7]
[339072134,1727200248271,-345.14573,0.000259,7]
[339072135,1727200248281,-249.078605,0.000259,7]
[339072136,1727200248292,-249.078605,0.000259,7]
[339072137,1727200248302,-750.579028,0.000259,7]
[339072138,1727200248313,-750.579028,0.000259,7]
[339072139,1727200248323,-222.459046,0.000259,7]
[339072140,1727200248333,-222.459046,0.000259,7]
[339072141,1727200248343,-151.0,0.000259,7]
[339072142,1727200248352,-151.0,0.000259,7]
[339072143,1727200248362,-1768.37823,0.000259,7]
[339072144,1727200248372,-209.261881,0.000259,7]
[339072145,1727200248383,-1768.37823,0.000259,7]
[339072146,1727200248392,-1000.0,0.000259,2]
[339072147,1727200248402,-209.261881,0.000259,7]
[339072148,1727200248411,-1433.804661,0.000259,7]
[339072149,1727200248421,-1433.804661,0.000259,7]
[339072150,1727200248432,-173.086682,0.000259,7]
[339072151,1727200248442,-173.086682,0.000259,7]
[339072152,1727200248452,-350.831491,0.000259,7]
[339072153,1727200248462,-350.831491,0.000259,7]
[339072154,1727200248472,-151.0,0.000259,7]
[339072155,1727200248482,-652.374896,0.000259,7]
[339072156,1727200248492,-397.538521,0.000259,7]
[339072157,1727200248501,-652.374896,0.000259,7]
[339072158,1727200248511,-397.538521,0.000259,7]
[339072159,1727200248522,-151.0,0.000259,7]
[339072160,1727200248534,-344.477916,0.000259,7]
[339072161,1727200248545,-344.477916,0.000259,7]
[339072162,1727200248558,-2796.65177,0.000259,7]
[339072163,1727200248568,-151.0,0.000259,7]
[339072164,1727200248578,-2796.65177,0.000259,7]
[339072165,1727200248590,-400.870378,0.000259,7]
[339072166,1727200248600,-400.870378,0.000259,7]
[339072167,1727200248610,-423.104078,0.000259,7]
[339072168,1727200248620,-400.870378,0.000259,7]
[339072169,1727200248631,-400.870378,0.000259,7]
[339072170,1727200248640,-423.104078,0.000259,7]
[339072171,1727200248650,-566.381994,0.000259,7]
[339072172,1727200248660,-566.381994,0.000259,7]
[339072173,1727200248670,-619.783301,0.000259,7]
[339072174,1727200248680,-619.783301,0.000259,7]
[339072175,1727200248690,-152.878018,0.000259,7]
[339072176,1727200248700,-150.0,0.000259,2]
[339072177,1727200248709,-151.0,0.000259,7]
[339072178,1727200248719,-150.0,0.00025927,2]
[339072179,1727200248729,-177.0,0.00025951,2]
[339072180,1727200248739,-177.0,0.00025951,2]
[339072181,1727200248749,-177.0,0.00025951,2]
[339072182,1727200248759,-177.0,0.00025951,2]
[339072183,1727200248769,-177.0,0.00025951,2]
[339072184,1727200248779,-177.0,0.00025951,2]
[339072185,1727200248789,-177.0,0.00025951,2]
[339072186,1727200248799,-177.0,0.00025951,2]
[339072187,1727200248809,-177.0,0.00025951,2]
[339072188,1727200248819,-177.0,0.00025951,2]
[339072189,1727200248830,-177.0,0.00025951,2]
[339072190,1727200248842,-177.0,0.00025951,2]
[339072191,1727200248852,-177.0,0.00025951,2]
[339072192,1727200248861,-177.0,0.00025951,2]
[339072193,1727200248871,-600.0,0.00025951,2]
[339072194,1727200248881,-600.0,0.00025951,2]
[339072195,1727200248891,-600.0,0.00025951,2]
[339072196,1727200248901,-600.0,0.00025951,2]
[339072197,1727200248911,-600.0,0.00025951,2]
[339072198,1727200248921,-600.0,0.00025951,2]
[339072199,1727200248932,-600.0,0.00025951,2]
[339072200,1727200248942,-600.0,0.00025951,2]
[339072201,1727200248952,-600.0,0.00025951,2]
[339072202,1727200248961,-600.0,0.00025951,2]
[339072203,1727200248970,-600.0,0.00025951,2]
[339072204,1727200248980,-600.0,0.00025951,2]
[339072205,1727200248989,-600.0,0.00025951,2]
[339072206,1727200249086,-600.0,0.00025951,2]
[339072207,1727200249096,-177.0,0.00025951,2]
[339072208,1727200249106,-177.0,0.00025951,2]
[339072209,1727200249116,-177.0,0.00025951,2]
[339072210,1727200249125,-177.0,0.00025951,2]
[339072211,1727200249135,-177.0,0.00025951,2]
[339072212,1727200249144,-177.0,0.00025951,2]
[339072213,1727200249154,-177.0,0.00025951,2]
[339072214,1727200249168,-177.0,0.00025951,2]
[339072215,1727200249178,-177.0,0.00025951,2]
[339072216,1727200249188,-177.0,0.00025951,2]
[339072217,1727200249198,-177.0,0.00025951,2]
[339072218,1727200249208,-177.0,0.00025951,2]
[339072219,1727200249218,-177.0,0.00025951,2]
[339072220,1727200249228,-177.0,0.00025951,2]
[339072221,1727200249238,-600.0,0.00025951,2]
[339072222,1727200249249,-600.0,0.00025951,2]
[339072223,1727200249259,-600.0,0.00025951,2]
[339072224,1727200249269,-600.0,0.00025951,2]
[339072225,1727200249278,-600.0,0.00025951,2]
[339072226,1727200249287,-600.0,0.00025951,2]
[339072227,1727200249297,-600.0,0.00025951,2]
[339072228,1727200249306,-600.0,0.00025951,2]
[339072229,1727200249316,-600.0,0.00025951,2]
[339072230,1727200249326,-600.0,0.00025951,2]
[339072231,1727200249337,-600.0,0.00025951,2]
[339072232,1727200249346,-600.0,0.00025951,2]
[339072233,1727200249355,-600.0,0.00025951,2]
[339072234,1727200249364,-600.0,0.00025951,2]
[339072235,1727200249373,-177.0,0.00025951,2]
[339072236,1727200249382,-177.0,0.00025951,2]
[339072237,1727200249392,-177.0,0.00025951,2]
[339072238,1727200249402,-177.0,0.00025951,2]
[339072239,1727200249412,-177.0,0.00025951,2]
[339072240,1727200249422,-177.0,0.00025951,2]
[339072241,1727200249432,-177.0,0.00025951,2]
[339072242,1727200249441,-177.0,0.00025951,2]
[339072243,1727200249451,-177.0,0.00025951,2]
[339072244,1727200249462,-177.0,0.00025951,2]
[339072245,1727200249472,-177.0,0.00025951,2]
[339072246,1727200249481,-177.0,0.00025951,2]
[339072247,1727200249490,-177.0,0.00025951,2]
[339072248,1727200249499,-177.0,0.00025951,2]
[339072249,1727200249508,-600.0,0.00025951,2]
[339072250,1727200249516,-600.0,0.00025951,2]
[339072251,1727200249526,-600.0,0.00025951,2]
[339072252,1727200249535,-600.0,0.00025951,2]
[339072253,1727200249545,-600.0,0.00025951,2]
[339072254,1727200249555,-600.0,0.00025951,2]
[339072255,1727200249564,-600.0,0.00025951,2]
[339072256,1727200249574,-600.0,0.00025951,2]
[339072257,1727200249583,-600.0,0.00025951,2]
[339072258,1727200249597,-600.0,0.00025951,2]
[339072259,1727200249606,-600.0,0.00025951,2]
[339072260,1727200249616,-600.0,0.00025951,2]
[339072261,1727200249625,-600.0,0.00025951,2]
[339072262,1727200249634,-600.0,0.00025951,2]
[339072263,1727200249644,-177.0,0.00025951,2]
[339072264,1727200249653,-177.0,0.00025951,2]
[339072265,1727200249662,-177.0,0.00025951,2]
[339072266,1727200249671,-177.0,0.00025951,2]
[339072267,1727200249683,-177.0,0.00025951,2]
[339072268,1727200249705,-177.0,0.00025951,2]
[339072269,1727200249725,-177.0,0.00025951,2]
[339072270,1727200249746,-177.0,0.00025951,2]
[339072271,1727200249770,-177.0,0.00025951,2]
[339072272,1727200249788,-177.0,0.00025951,2]
[339072273,1727200249807,-177.0,0.00025951,2]
[339072274,1727200249821,-177.0,0.00025951,2]
[339072275,1727200249838,-177.0,0.00025951,2]
[339072276,1727200249857,-177.0,0.00025951,2]
[339072277,1727200249878,-600.0,0.00025951,2]
[339072278,1727200249891,-600.0,0.00025951,2]
[339072279,1727200249907,-600.0,0.00025951,2]
[339072280,1727200249924,-600.0,0.00025951,2]
[339072281,1727200249940,-600.0,0.00025951,2]
[339072282,1727200249954,-600.0,0.00025951,2]
[339072283,1727200249970,-600.0,0.00025951,2]
[339072284,1727200249986,-600.0,0.00025951,2]
[339072285,1727200250001,-600.0,0.00025951,2]
[339072286,1727200250015,-600.0,0.00025951,2]
[339072287,1727200250030,-600.0,0.00025951,2]
[339072288,1727200250047,-600.0,0.00025951,2]
[339072289,1727200250063,-600.0,0.00025951,2]
[339072290,1727200250077,-600.0,0.00025951,2]
[339072291,1727200250093,-150.0,0.00025955,2]
[339072292,1727200250107,-150.0,0.00025982,2]
[339072293,1727200250124,-540.7,0.00026,31]
[339072294,1727200250142,-238.12,0.00026,7]
[339072295,1727200250158,-87017.68808493,0.00026,2]
[339072296,1727200250780,-1483.80000005,0.00026,2]
[339072297,1727200253923,-8847.67286743,0.00026,2]
[339072298,1727200254311,-488.46610542,0.0001861,2]
[339072299,1727200254691,-73.15865389,0.0001861,2]
[339072300,1727200255160,-7502.95082598,0.0001861,2]
[339072301,1727200255171,-500.0,0.00020317,2]
[339072302,1727200255179,-1037.25205191,0.00020865,2]
[339072303,1727200255188,-8064.57558528,0.00020995,2]
[339072304,1727200255198,-302.51602579,0.00023,2]
[339072305,1727200255208,-302.39524884,0.0002323,2]
[339072306,1727200255217,-151.0,0.00023234,7]
[339072307,1727200255226,-271.641321,0.00025,7]
[339072308,1727200255237,-209.0432937,0.00025036,2]
[339072309,1727200255246,-1000.0,0.00025658,2]
[339072310,1727200255255,-177.0,0.00025951,2]
[339072311,1727200255265,-177.0,0.00025951,2]
[339072312,1727200255276,-88064.60994759,0.00026,2]
[339072313,1727200255285,-169.239238,0.00026,7]
[339072314,1727200255294,-169.239238,0.00026,7]
[339072315,1727200255303,-236.508987,0.00026,7]
[339072316,1727200255313,-236.508987,0.00026,7]
[339072317,1727200255322,-264.375508,0.00026,7]
[339072318,1727200255331,-264.375508,0.00026,7]
[339072319,1727200255342,-151.0,0.00026,7]
[339072320,1727200255351,-2056.175862,0.00026,7]
[339072321,1727200255360,-165.127171,0.00026,7]
[339072322,1727200255370,-165.127171,0.00026,7]
[339072323,1727200255379,-151.0,0.00026,7]
[339072324,1727200255388,-187.077302,0.00026,7]
[339072325,1727200255493,-151.0,0.00026,7]
[339072326,1727200255503,-187.077302,0.00026,7]
[339072327,1727200255512,-151.0,0.00026,7]
[339072328,1727200255522,-151.0,0.00026,7]
[339072329,1727200255531,-151.0,0.00026,7]
[339072330,1727200255540,-166.507138,0.00026,7]
[339072331,1727200255549,-960.684071,0.00026,7]
[339072332,1727200255558,-960.684071,0.00026,7]
[339072333,1727200255567,-183.244795,0.00026,7]
[339072334,1727200255578,-183.244795,0.00026,7]
[339072335,1727200255587,-345.14573,0.00026,7]
[339072336,1727200255597,-345.14573,0.00026,7]
[339072337,1727200255606,-249.078605,0.00026,7]
[339072338,1727200255615,-249.078605,0.00026,7]
[339072339,1727200255623,-750.579028,0.00026,7]
[339072340,1727200255632,-750.579028,0.00026,7]
[339072341,1727200255641,-222.459046,0.00026,7]
[339072342,1727200255650,-222.459046,0.00026,7]
[339072343,1727200255659,-151.0,0.00026,7]
[339072344,1727200255669,-151.0,0.00026,7]
[339072345,1727200255678,-1768.37823,0.00026,7]
[339072346,1727200255688,-209.261881,0.00026,7]
[339072347,1727200255697,-1768.37823,0.00026,7]
[339072348,1727200255706,-209.261881,0.00026,7]
[339072349,1727200255714,-1433.804661,0.00026,7]
[339072350,1727200255723,-1433.804661,0.00026,7]
[339072351,1727200255732,-173.086682,0.00026,7]
[339072352,1727200255741,-173.086682,0.00026,7]
[339072353,1727200255750,-350.831491,0.00026,7]
[339072354,1727200255759,-350.831491,0.00026,7]
[339072355,1727200255769,-151.0,0.00026,7]
[339072356,1727200255778,-652.374896,0.00026,7]